lending/lending_fUSD_20240622
["ID","MTS","AMOUNT","RATE_DAILY","PERIOD"]
[330140822,1719036359047,-500.0,0.00045205,120]
[330140823,1719036359088,-500.0,0.00045205,120]
[330140824,1719036359134,-500.0,0.00045205,120]
[330140825,1719036359178,-500.0,0.00045205,120]
[330140826,1719036359222,-500.0,0.00045205,120]
[330140827,1719036359267,-500.0,0.00045205,120]
[330140828,1719036359310,-500.0,0.00045205,120]
[330140829,1719036359351,-500.0,0.00045205,120]
[330140830,1719036359393,-500.0,0.00045205,120]
[330140831,1719036359436,-500.0,0.00045205,120]
[330140832,1719036359479,-500.0,0.00045205,120]
[330140833,1719036359519,-500.0,0.00045205,120]
[330140834,1719036359560,-551.86,0.00045205,120]
[330140835,1719036359601,-500.0,0.00045205,120]
[330140836,1719036359647,-564.03,0.00045205,120]
[330140837,1719036359690,-500.0,0.00045205,120]
[330140838,1719036359736,-500.0,0.00045205,120]
[330140839,1719036359780,-500.0,0.00045205,120]
[330140840,1719036359824,-500.0,0.00045205,120]
[330140841,1719036359871,-626.83,0.00045205,120]
[330140842,1719036359928,-500.0,0.00045205,120]
[330140843,1719036359984,-500.0,0.00045205,120]
[330140844,1719036360031,-500.0,0.00045205,120]
[330140845,1719036360076,-563.28,0.00045205,120]
[330140846,1719036360122,-500.0,0.00045205,120]
[330140847,1719036360168,-500.0,0.00045205,120]
[330140848,1719036360215,-500.0,0.00045205,120]
[330140849,1719036360267,-526.47,0.00045205,120]
[330140850,1719036360313,-500.0,0.00045205,120]
[330140851,1719036360362,-500.0,0.00045205,120]
[330140852,1719036360412,-562.99,0.00045205,120]
[330140853,1719036360459,-500.0,0.00045205,120]
[330140854,1719036360504,-500.0,0.00045205,120]
[330140855,1719036360765,-631.91,0.00045205,120]
[330140856,1719036360813,-759.73,0.00045205,120]
[330140857,1719036360858,-500.0,0.00045205,120]
[330140858,1719036360902,-500.0,0.00045205,120]
[330140859,1719036360946,-500.0,0.00045205,120]
[330140860,1719036360991,-500.0,0.00045205,120]
[330140861,1719036361038,-500.0,0.00045205,120]
[330140862,1719036361086,-500.0,0.00045205,120]
[330140863,1719036361131,-752.16,0.00045205,120]
[330140864,1719036361177,-500.0,0.00045205,120]
[330140865,1719036361227,-500.0,0.00045205,120]
[330140866,1719036361275,-500.0,0.00045205,120]
[330140867,1719036361324,-500.0,0.00045205,120]
[330140868,1719036361371,-500.0,0.00045205,120]
[330140869,1719036361421,-500.0,0.00045205,120]
[330140870,1719036361465,-510.64,0.00045205,120]
[330140871,1719036361512,-500.0,0.00045205,120]
[330140872,1719036361560,-500.0,0.00045205,120]
[330140873,1719036361608,-500.0,0.00045205,120]
[330140874,1719036361653,-500.0,0.00045205,120]
[330140875,1719036361696,-500.0,0.00045205,120]
[330140876,1719036361741,-500.0,0.00045205,120]
[330140877,1719036361791,-738.25,0.00045205,120]
[330140878,1719036361840,-1103.22,0.00045205,120]
[330140879,1719036361887,-500.0,0.00045205,120]
[330140880,1719036361936,-569.65,0.00045205,120]
[330140881,1719036361981,-500.0,0.00045205,120]
[330140882,1719036362026,-500.0,0.00045205,120]
[330140883,1719036362072,-785.89,0.00045205,120]
[330140884,1719036362118,-905.82,0.00045205,120]
[330140885,1719036362165,-599.43,0.00045205,120]
[330140886,1719036362213,-511.48,0.00045205,120]
[330140887,1719036362260,-500.0,0.00045205,120]
[330140888,1719036362308,-1019.82,0.00045205,120]
[330140889,1719036362355,-500.0,0.00045205,120]
[330140890,1719036362401,-500.0,0.00045205,120]
[330140891,1719036362448,-662.89,0.00045205,120]
[330140892,1719036362495,-500.0,0.00045205,120]
[330140893,1719036362546,-500.0,0.00045205,120]
[330140894,1719036362596,-767.78,0.00045205,120]
[330140895,1719036362651,-665.78,0.00045205,120]
[330140896,1719036362700,-500.0,0.00045205,120]
[330140897,1719036362747,-516.0,0.00045205,120]
[330140898,1719036362795,-500.0,0.00045205,120]
[330140899,1719036362844,-744.87,0.00045205,120]
[330140900,1719036362895,-500.0,0.00045205,120]
[330140901,1719036362944,-500.0,0.00045205,120]
[330140902,1719036362992,-500.0,0.00045205,120]
[330140903,1719036363039,-824.84,0.00045205,120]
[330140904,1719036363092,-512.02,0.00045205,120]
[330140905,1719036363146,-704.14,0.00045205,120]
[330140906,1719036363198,-1213.53,0.00045205,120]
[330140907,1719036363246,-700.25,0.00045205,120]
[330140908,1719036363296,-500.0,0.00045205,120]
[330140909,1719036363346,-909.09,0.00045205,120]
[330140910,1719036363402,-500.0,0.00045205,120]
[330140911,1719036363452,-500.0,0.00045205,120]
[330140912,1719036363502,-500.0,0.00045205,120]
[330140913,1719036363553,-500.0,0.00045205,120]
[330140914,1719036363603,-500.0,0.00045205,120]
[330140915,1719036363658,-995.17,0.00045205,120]
[330140916,1719036363708,-500.0,0.00045205,90]
[330140917,1719036363762,-500.0,0.00045205,120]
[330140918,1719036363813,-1178.94,0.00045205,120]
[330140919,1719036363871,-500.0,0.00045205,120]
[330140920,1719036363922,-500.0,0.00045205,120]
[330140921,1719036363970,-623.96,0.00045205,120]
[330140922,1719036364019,-500.0,0.00045205,120]
[330140923,1719036364072,-500.0,0.00045205,120]
[330140924,1719036364119,-500.0,0.00045205,120]
[330140925,1719036364167,-500.0,0.00045205,120]
[330140926,1719036364215,-890.56,0.00045205,120]
[330140927,1719036364261,-553.21,0.00045205,120]
[330140928,1719036364309,-500.0,0.00045205,120]
[330140929,1719036364358,-500.0,0.00045205,120]
[330140930,1719036364413,-500.0,0.00045205,120]
[330140931,1719036364466,-500.0,0.00045205,120]
[330140932,1719036364515,-500.0,0.00045205,120]
[330140933,1719036364560,-500.0,0.00045205,120]
[330140934,1719036364606,-500.77,0.00045205,120]
[330140935,1719036364654,-500.0,0.00045205,120]
[330140936,1719036364699,-542.28,0.00045205,120]
[330140937,1719036364746,-500.0,0.00045205,120]
[330140938,1719036364790,-500.0,0.00045205,120]
[330140939,1719036364838,-500.0,0.00045205,120]
[330140940,1719036364885,-500.0,0.00045205,120]
[330140941,1719036364933,-500.0,0.00045205,120]
[330140942,1719036364984,-500.0,0.00045205,120]
[330140943,1719036365043,-500.0,0.00045205,120]
[330140944,1719036365103,-500.0,0.00045205,120]
[330140945,1719036365154,-500.0,0.00045205,120]
[330140946,1719036365201,-500.0,0.00045205,120]
[330140947,1719036365251,-500.0,0.00045205,120]
[330140948,1719036365300,-717.36,0.00045205,120]
[330140949,1719036365347,-500.0,0.00045205,120]
[330140950,1719036365398,-725.93,0.00045205,120]
[330140951,1719036365445,-500.0,0.00045205,120]
[330140952,1719036365491,-980.06,0.00045205,120]
[330140953,1719036365537,-500.0,0.00045205,120]
[330140954,1719036365583,-1633.25,0.00045205,120]
[330140955,1719036365629,-500.0,0.00045205,120]
[330140956,1719036365680,-1289.04,0.00045205,120]
[330140957,1719036365728,-500.0,0.00045205,120]
[330140958,1719036365776,-500.0,0.00045205,120]
[330140959,1719036366032,-500.0,0.00045205,120]
[330140960,1719036366083,-665.31,0.00045205,120]
[330140961,1719036366130,-500.0,0.00045205,120]
[330140962,1719036366183,-500.0,0.00045205,120]
[330140963,1719036366232,-500.0,0.00045205,120]
[330140964,1719036366279,-5634.35,0.00045205,120]
[330140965,1719036366330,-500.0,0.00045205,120]
[330140966,1719036366376,-500.0,0.00045205,120]
[330140967,1719036366427,-505.7,0.00045205,120]
[330140968,1719036366471,-500.0,0.00045205,120]
[330140969,1719036366520,-181.18217849,0.00045205,120]
[330140970,1719036366566,-435.42453188,0.00045205,120]
[330140971,1719036366609,-500.0,0.00045205,120]
[330140972,1719036366655,-777.01,0.00045205,120]
[330140973,1719036366704,-2158.16,0.00045205,120]
[330140974,1719036366751,-500.0,0.00045205,120]
[330140975,1719036366793,-500.0,0.00045205,120]
[330140976,1719036366843,-500.0,0.00045205,120]
[330140977,1719036366890,-960.18,0.00045205,120]
[330140978,1719036366939,-500.0,0.00045205,120]
[330140979,1719036366985,-500.0,0.00045205,120]
[330140980,1719036367038,-626.49,0.00045205,120]
[330140981,1719036367084,-500.0,0.00045205,120]
[330140982,1719036367134,-888.94,0.00045205,120]
[330140983,1719036367182,-500.0,0.00045205,120]
[330140984,1719036367228,-500.0,0.00045205,120]
[330140985,1719036367273,-504.58,0.00045205,120]
[330140986,1719036367320,-500.0,0.00045205,120]
[330140987,1719036367366,-913.6,0.00045205,120]
[330140988,1719036367410,-722.45,0.00045205,120]
[330140989,1719036367454,-500.0,0.00045205,120]
[330140990,1719036367499,-500.0,0.00045205,120]
[330140991,1719036367544,-950.2,0.00045205,120]
[330140992,1719036367587,-1742.54,0.00045205,120]
[330140993,1719036367631,-929.42,0.00045205,120]
[330140994,1719036367686,-1453.6,0.00045205,120]
[330140995,1719036367735,-500.0,0.00045205,120]
[330140996,1719036367783,-500.0,0.00045205,120]
[330140997,1719036367831,-500.0,0.00045205,120]
[330140998,1719036367878,-500.0,0.00045205,120]
[330140999,1719036367926,-500.0,0.00045205,120]
[330141000,1719036367972,-500.0,0.00045205,120]
[330141001,1719036368019,-500.0,0.00045205,120]
[330141002,1719036368066,-500.0,0.00045205,120]
[330141003,1719036368109,-639.03,0.00045205,120]
[330141004,1719036368156,-500.0,0.00045205,120]
[330141005,1719036368206,-500.0,0.00045205,120]
[330141006,1719036368253,-915.46,0.00045205,120]
[330141007,1719036368296,-500.0,0.00045205,120]
[330141008,1719036368343,-500.0,0.00045205,120]
[330141009,1719036368388,-500.0,0.00045205,120]
[330141010,1719036368434,-500.0,0.00045205,120]
[330141011,1719036368477,-500.0,0.00045205,120]
[330141012,1719036368519,-500.0,0.00045205,120]
[330141013,1719036368564,-814.58,0.00045205,120]
[330141014,1719036368610,-982.41,0.00045205,120]
[330141015,1719036368660,-675.95,0.00045205,120]
[330141016,1719036368705,-500.0,0.00045205,120]
[330141017,1719036368749,-584.59,0.00045205,120]
[330141018,1719036368799,-565.75,0.00045205,120]
[330141019,1719036368846,-908.76,0.00045205,120]
[330141020,1719036368894,-500.0,0.00045205,120]
[330141021,1719036368939,-1161.71,0.00045205,120]
[330141022,1719036368982,-500.0,0.00045205,120]
[330141023,1719036369029,-500.0,0.00045205,120]
[330141024,1719036369076,-518.65,0.00045205,120]
[330141025,1719036370593,-500.0,0.00045205,120]
[330141026,1719036370657,-500.0,0.00045205,120]
[330141027,1719036370716,-500.0,0.00045205,120]
[330141028,1719036370768,-1190.47,0.00045205,120]
[330141029,1719036370820,-513.74,0.00045205,120]
[330141030,1719036370869,-1342.95,0.00045205,120]
[330141031,1719036370919,-820.62,0.00045205,120]
[330141032,1719036370968,-562.54,0.00045205,120]
[330141033,1719036371021,-500.0,0.00045205,120]
[330141034,1719036371071,-2558.37,0.00045205,120]
[330141035,1719036371122,-500.0,0.00045205,120]
[330141036,1719036371170,-748.31,0.00045205,120]
[330141037,1719036371222,-500.0,0.00045205,120]
[330141038,1719036371270,-457.65404753,0.00045205,120]
[330141039,1719036371325,-787.38,0.00045205,120]
[330141040,1719036371374,-500.0,0.00045205,120]
[330141041,1719036371425,-500.0,0.00045205,120]
[330141042,1719036371471,-574.71,0.00045205,120]
[330141043,1719036371516,-500.0,0.00045205,120]
[330141044,1719036371562,-500.0,0.00045205,120]
[330141045,1719036371609,-1040.39,0.00045205,120]
[330141046,1719036371656,-500.0,0.00045205,120]
[330141047,1719036371702,-500.0,0.00045205,120]
[330141048,1719036371749,-986.48,0.00045205,120]
[330141049,1719036371795,-500.0,0.00045205,120]
[330141050,1719036371854,-500.0,0.00045205,120]
[330141051,1719036371900,-693.64,0.00045205,120]
[330141052,1719036371948,-500.0,0.00045205,120]
[330141053,1719036371994,-567.71,0.00045205,120]
[330141054,1719036372040,-708.63,0.00045205,120]
[330141055,1719036372085,-500.0,0.00045205,120]
[330141056,1719036372129,-165.99,0.00045205,120]
[330141057,1719036372175,-603.07,0.00045205,120]
[330141058,1719036372220,-594.59,0.00045205,120]
[330141059,1719036372268,-676.36,0.00045205,120]
[330141060,1719036372321,-500.0,0.00045205,120]
[330141061,1719036372366,-500.0,0.00045205,120]
[330141062,1719036372414,-688.0,0.00045205,120]
[330141063,1719036372781,-519.27,0.00045205,120]
[330141064,1719036372830,-500.0,0.00045205,120]
[330141065,1719036372876,-708.71,0.00045205,120]
[330141066,1719036372923,-500.0,0.00045205,120]
[330141067,1719036372969,-1077.8,0.00045205,120]
[330141068,1719036373015,-500.0,0.00045205,120]
[330141069,1719036373062,-500.0,0.00045205,120]
[330141070,1719036373111,-500.0,0.00045205,120]
[330141071,1719036373158,-1451.03,0.00045205,120]
[330141072,1719036373202,-554.01,0.00045205,120]
[330141073,1719036373250,-516.42974611,0.00045205,120]
[330141074,1719036373298,-500.0,0.00045205,120]
[330141075,1719036373344,-668.77,0.00045205,120]
[330141076,1719036373389,-643.38,0.00045205,120]
[330141077,1719036373434,-620.73,0.00045205,120]
[330141078,1719036373479,-751.13,0.00045205,120]
[330141079,1719036373528,-662.68,0.00045205,120]
[330141080,1719036373574,-500.0,0.00045205,120]
[330141081,1719036373620,-795.08,0.00045205,120]
[330141082,1719036373666,-500.0,0.00045205,120]
[330141083,1719036373714,-804.08,0.00045205,120]
[330141084,1719036373763,-997.76,0.00045205,120]
[330141085,1719036373813,-810.49,0.00045205,120]
[330141086,1719036373872,-500.0,0.00045205,120]
[330141087,1719036373924,-500.0,0.00045205,120]
[330141088,1719036373975,-500.0,0.00045205,120]
[330141089,1719036374030,-858.48,0.00045205,120]
[330141090,1719036374080,-1034.11,0.00045205,120]
[330141091,1719036374130,-584.53,0.00045205,120]
[330141092,1719036374179,-507.39360696,0.00045205,120]
[330141093,1719036374228,-741.25,0.00045205,120]
[330141094,1719036374277,-631.0,0.00045205,120]
[330141095,1719036374328,-2218.12,0.00045205,120]
[330141096,1719036374378,-739.19,0.00045205,120]
[330141097,1719036374426,-500.0,0.00045205,120]
[330141098,1719036374471,-642.93,0.00045205,120]
[330141099,1719036374520,-500.0,0.00045205,120]
[330141100,1719036374568,-1722.23,0.00045205,120]
[330141101,1719036374615,-500.0,0.00045205,120]
[330141102,1719036374666,-872.0,0.00045205,120]
[330141103,1719036374712,-500.0,0.00045205,120]
[330141104,1719036374760,-500.0,0.00045205,120]
[330141105,1719036374807,-500.0,0.00045205,120]
[330141106,1719036374857,-513.46,0.00045205,120]
[330141107,1719036374902,-500.0,0.00045205,120]
[330141108,1719036374947,-851.62,0.00045205,120]
[330141109,1719036374993,-500.0,0.00045205,120]
[330141110,1719036375041,-500.0,0.00045205,120]
[330141111,1719036375089,-500.0,0.00045205,120]
[330141112,1719036375136,-567.07,0.00045205,120]
[330141113,1719036375184,-784.0,0.00045205,120]
[330141114,1719036375233,-957.93,0.00045205,120]
[330141115,1719036375282,-556.22,0.00045205,120]
[330141116,1719036375325,-500.0,0.00045205,120]
[330141117,1719036375370,-5700.82,0.00045205,120]
[330141118,1719036375416,-500.0,0.00045205,120]
[330141119,1719036375463,-500.0,0.00045205,120]
[330141120,1719036375508,-835.52,0.00045205,120]
[330141121,1719036375552,-500.0,0.00045205,120]
[330141122,1719036375598,-973.6,0.00045205,120]
[330141123,1719036375644,-500.0,0.00045205,120]
[330141124,1719036375693,-551.94,0.00045205,120]
[330141125,1719036375739,-500.0,0.00045205,120]
[330141126,1719036375786,-933.54,0.00045205,120]
[330141127,1719036375833,-780.03,0.00045205,120]
[330141128,1719036375882,-500.0,0.00045205,120]
[330141129,1719036375928,-531.4,0.00045205,120]
[330141130,1719036375979,-500.0,0.00045205,120]
[330141131,1719036376036,-1010.49,0.00045205,120]
[330141132,1719036376094,-617.22,0.00045205,120]
[330141133,1719036376164,-595.47,0.00045205,120]
[330141134,1719036376211,-500.0,0.00045205,120]
[330141135,1719036376258,-790.44,0.00045205,120]
[330141136,1719036376305,-1491.01,0.00045205,120]
[330141137,1719036376352,-500.0,0.00045205,120]
[330141138,1719036376398,-500.0,0.00045205,120]
[330141139,1719036376442,-2692.43,0.00045205,120]
[330141140,1719036376488,-500.0,0.00045205,120]
[330141141,1719036376534,-500.0,0.00045205,120]
[330141142,1719036376580,-500.0,0.00045205,120]
[330141143,1719036376624,-500.0,0.00045205,120]
[330141144,1719036376670,-786.9,0.00045205,120]
[330141145,1719036376716,-500.0,0.00045205,120]
[330141146,1719036376760,-573.21,0.00045205,120]
[330141147,1719036376806,-1847.15,0.00045205,120]
[330141148,1719036376850,-1190.07,0.00045205,120]
[330141149,1719036376894,-528.89,0.00045205,120]
[330141150,1719036376939,-814.72,0.00045205,120]
[330141151,1719036376985,-694.8,0.00045205,120]
[330141152,1719036377030,-1169.48,0.00045205,120]
[330141153,1719036377075,-500.0,0.00045205,120]
[330141154,1719036377119,-500.0,0.00045205,120]
[330141155,1719036377164,-548.56,0.00045205,120]
[330141156,1719036377210,-3420.06,0.00045205,120]
[330141157,1719036377259,-1395.95,0.00045205,120]
[330141158,1719036377306,-6854.56,0.00045205,120]
[330141159,1719036377353,-3170.55,0.00045205,120]
[330141160,1719036377399,-179.09058535,0.00045205,120]
[330141161,1719036377451,-500.0,0.00045205,120]
[330141162,1719036377496,-1502.76,0.00045205,120]
[330141163,1719036377542,-500.0,0.00045205,120]
[330141164,1719036377588,-5752.17,0.00045205,120]
[330141165,1719036377633,-500.0,0.00045205,120]
[330141166,1719036377679,-2115.1,0.00045205,120]
[330141167,1719036378034,-3003.45,0.00045205,120]
[330141168,1719036378079,-500.0,0.00045205,120]
[330141169,1719036378122,-1104.74,0.00045205,120]
[330141170,1719036378166,-500.0,0.00045205,120]
[330141171,1719036378211,-500.0,0.00045205,120]
[330141172,1719036378256,-500.0,0.00045205,120]
[330141173,1719036378312,-2497.7,0.00045205,120]
[330141174,1719036378367,-18367.02,0.00045205,120]
[330141175,1719036378415,-500.0,0.00045205,120]
[330141176,1719036378458,-500.0,0.00045205,120]
[330141177,1719036378502,-3608.36,0.00045205,120]
[330141178,1719036378556,-8342.57,0.00045205,120]
[330141179,1719036378611,-590.54,0.00045205,120]
[330141180,1719036378666,-1123.05,0.00045205,120]
[330141181,1719036378715,-519.00862731,0.00045205,120]
[330141182,1719036378758,-1007.82,0.00045205,90]
[330141183,1719036378805,-622.12,0.00045205,120]
[330141184,1719036378853,-500.0,0.00045205,120]
[330141185,1719036378900,-676.08,0.00045205,120]
[330141186,1719036378946,-1581.4,0.00045205,120]
[330141187,1719036378997,-500.0,0.00045205,120]
[330141188,1719036379045,-750.27,0.00045205,120]
[330141189,1719036379094,-500.0,0.00045205,120]
[330141190,1719036379146,-500.0,0.00045205,120]
[330141191,1719036379194,-2161.29,0.00045205,120]
[330141192,1719036379237,-500.0,0.00045205,120]
[330141193,1719036379287,-500.0,0.00045205,120]
[330141194,1719036379334,-10793.88,0.00045205,120]
[330141195,1719036379381,-1384.1,0.00045205,120]
[330141196,1719036379435,-2621.62,0.00045205,120]
[330141197,1719036379489,-500.0,0.00045205,120]
[330141198,1719036379543,-2087.49,0.00045205,120]
[330141199,1719036379592,-500.0,0.00045205,120]
[330141200,1719036379634,-500.0,0.00045205,120]
[330141201,1719036379681,-1187.65,0.00045205,120]
[330141202,1719036379725,-1027.73,0.00045205,120]
[330141203,1719036379770,-5356.29,0.00045205,120]
[330141204,1719036379814,-500.0,0.00045205,120]
[330141205,1719036379860,-500.0,0.00045205,120]
[330141206,1719036379910,-559.9,0.00045205,120]
[330141207,1719036379955,-500.0,0.00045205,120]
[330141208,1719036380001,-500.0,0.00045205,120]
[330141209,1719036380046,-500.0,0.00045205,120]
[330141210,1719036380091,-500.0,0.00045205,120]
[330141211,1719036380136,-3675.37,0.00045205,120]
[330141212,1719036380180,-782.46,0.00045205,120]
[330141213,1719036380224,-562.04,0.00045205,120]
[330141214,1719036380268,-500.0,0.00045205,120]
[330141215,1719036380311,-964.0,0.00045205,120]
[330141216,1719036380355,-599.9,0.00045205,120]
[330141217,1719036380399,-899.88,0.00045205,120]
[330141218,1719036380444,-500.0,0.00045205,120]
[330141219,1719036380489,-356.46,0.00045205,120]
[330141220,1719036380535,-500.0,0.00045205,120]
[330141221,1719036380580,-500.0,0.00045205,120]
[330141222,1719036380626,-500.0,0.00045205,120]
[330141223,1719036380673,-500.0,0.00045205,120]
[330141224,1719036380717,-500.0,0.00045205,120]
[330141225,1719036380758,-500.0,0.00045205,120]
[330141226,1719036380800,-1181.3,0.00045205,120]
[330141227,1719036380845,-1440.57,0.00045205,120]
[330141228,1719036380892,-1302.25,0.00045205,120]
[330141229,1719036380938,-1883.38,0.00045205,120]
[330141230,1719036380981,-500.0,0.00045205,120]
[330141231,1719036381026,-3549.14,0.00045205,120]
[330141232,1719036381073,-1218.53,0.00045205,120]
[330141233,1719036381119,-500.0,0.00045205,120]
[330141234,1719036381166,-1059.21,0.00045205,120]
[330141235,1719036381209,-662.3,0.00045205,120]
[330141236,1719036381255,-1580.79,0.00045205,120]
[330141237,1719036381302,-1599.98,0.00045205,120]
[330141238,1719036381348,-500.0,0.00045205,120]
[330141239,1719036381402,-500.0,0.00045205,120]
[330141240,1719036381456,-500.0,0.00045205,120]
[330141241,1719036381505,-593.43,0.00045205,120]
[330141242,1719036381548,-150.0,0.00045205,120]
[330141243,1719036381593,-988.64,0.00045205,120]
[330141244,1719036381634,-959.05,0.00045205,120]
[330141245,1719036381678,-3191.3,0.00045205,120]
[330141246,1719036381721,-6139.89,0.00045205,120]
[330141247,1719036381765,-500.0,0.00045205,120]
[330141248,1719036381808,-2618.99,0.00045205,120]
[330141249,1719036381848,-526.89,0.00045205,120]
[330141250,1719036381891,-500.0,0.00045205,120]
[330141251,1719036381934,-2568.94,0.00045205,120]
[330141252,1719036381983,-500.0,0.00045205,120]
[330141253,1719036382027,-542.91,0.00045205,120]
[330141254,1719036382071,-2371.19,0.00045205,120]
[330141255,1719036382118,-500.0,0.00045205,120]
[330141256,1719036382167,-516.96,0.00045205,120]
[330141257,1719036382212,-2246.51,0.00045205,120]
[330141258,1719036382255,-500.0,0.00045205,120]
[330141259,1719036382297,-500.0,0.00045205,120]
[330141260,1719036382343,-500.0,0.00045205,120]
[330141261,1719036382387,-8254.31,0.00045205,120]
[330141262,1719036382439,-500.0,0.00045205,120]
[330141263,1719036382484,-3827.85,0.00045205,120]
[330141264,1719036382528,-500.0,0.00045205,120]
[330141265,1719036382572,-588.14,0.00045205,120]
[330141266,1719036382621,-500.0,0.00045205,120]
[330141267,1719036382667,-554.74,0.00045205,120]
[330141268,1719036382711,-738.01,0.00045205,120]
[330141269,1719036382756,-500.0,0.00045205,120]
[330141270,1719036382800,-500.0,0.00045205,120]
[330141271,1719036383064,-500.0,0.00045205,120]
[330141272,1719036383109,-1230.69,0.00045205,120]
[330141273,1719036383154,-500.0,0.00045205,120]
[330141274,1719036383203,-896.32,0.00045205,120]
[330141275,1719036383246,-500.0,0.00045205,120]
[330141276,1719036383288,-746.31,0.00045205,120]
[330141277,1719036383331,-1578.72,0.00045205,120]
[330141278,1719036383376,-2020.64,0.00045205,120]
[330141279,1719036383422,-500.0,0.00045205,120]
[330141280,1719036383466,-1437.3,0.00045205,120]
[330141281,1719036383512,-909.44,0.00045205,120]
[330141282,1719036383559,-420.08883561,0.00045205,120]
[330141283,1719036383609,-549.51,0.00045205,120]
[330141284,1719036383668,-2492.52,0.00045205,120]
[330141285,1719036383725,-520.0,0.00045205,120]
[330141286,1719036383784,-14931.63652107,0.00045448,60]
[330141287,1719036383836,-500.0,0.00045479,120]
[330141288,1719036383884,-521.67464544,0.00045479,120]
[330141289,1719036383930,-500.0,0.00045479,120]
[330141290,1719036383976,-500.0,0.00045479,120]
[330141291,1719036384022,-389.35736661,0.00045479,120]
[330141292,1719036384069,-500.0,0.00045479,120]
[330141293,1719036384116,-500.0,0.00045479,120]
[330141294,1719036384163,-500.0,0.00045479,120]
[330141295,1719036384210,-500.0,0.00045479,120]
[330141296,1719036384256,-500.0,0.00045479,120]
[330141297,1719036384301,-500.0,0.00045479,120]
[330141298,1719036384344,-500.0,0.00045479,120]
[330141299,1719036384387,-500.0,0.00045479,120]
[330141300,1719036384432,-500.0,0.00045479,120]
[330141301,1719036384483,-500.0,0.00045479,120]
[330141302,1719036384531,-1019.32,0.00045479,120]
[330141303,1719036384585,-500.0,0.00045479,120]
[330141304,1719036384628,-500.0,0.00045479,120]
[330141305,1719036384676,-584.31,0.00045479,120]
[330141306,1719036384722,-500.0,0.00045479,120]
[330141307,1719036384773,-500.0,0.00045479,120]
[330141308,1719036384818,-580.92,0.00045479,120]
[330141309,1719036384863,-500.0,0.00045479,120]
[330141310,1719036384913,-535.17,0.00045479,120]
[330141311,1719036384970,-816.66,0.00045479,120]
[330141312,1719036385028,-500.0,0.00045479,120]
[330141313,1719036385084,-500.0,0.00045479,120]
[330141314,1719036385132,-500.0,0.00045479,120]
[330141315,1719036385181,-500.0,0.00045479,120]
[330141316,1719036385242,-500.0,0.00045479,120]
[330141317,1719036385302,-1109.65,0.00045479,120]
[330141318,1719036385356,-500.0,0.00045479,120]
[330141319,1719036385406,-500.0,0.00045479,120]
[330141320,1719036385458,-519.02822075,0.00045479,120]
[330141321,1719036385503,-500.0,0.00045479,120]